fUSD/lending_fUSD_20250622
["ID","MTS","AMOUNT","RATE_DAILY","PERIOD"]
[366915333,1750569049817,-848.82,0.00019178,2]
[366915334,1750569049827,-500.0,0.00019178,2]
[366915335,1750569049837,-490.0,0.00019178,2]
[366915336,1750569049848,-2932.48,0.00019178,2]
[366915337,1750569049859,-490.0,0.00019178,2]
[366915338,1750569049870,-490.0,0.00019178,2]
[366915339,1750569049880,-490.0,0.00019178,2]
[366915340,1750569049892,-2975.44,0.00019178,2]
[366915341,1750569049902,-886.75,0.00019178,2]
[366915342,1750569049911,-490.0,0.00019178,2]
[366915343,1750569049922,-27141.64,0.00019178,2]
[366915344,1750569049933,-490.0,0.00019178,2]
[366915345,1750569049943,-1268.12,0.00019178,2]
[366915346,1750569049953,-1943.9,0.00019178,2]
[366915347,1750569049963,-490.0,0.00019178,2]
[366915348,1750569049972,-1721.71,0.00019178,2]
[366915349,1750569049982,-490.0,0.00019178,2]
[366915350,1750569049991,-490.0,0.00019178,2]
[366915351,1750569050001,-1108.15,0.00019178,2]
[366915352,1750569050011,-490.0,0.00019178,2]
[366915353,1750569050020,-582.62,0.00019178,2]
[366915354,1750569050031,-490.0,0.00019178,2]
[366915355,1750569050040,-490.0,0.00019178,2]
[366915356,1750569050049,-490.0,0.00019178,2]
[366915357,1750569050060,-490.0,0.00019178,2]
[366915358,1750569050071,-490.0,0.00019178,2]
[366915359,1750569050081,-490.0,0.00019178,2]
[366915360,1750569050091,-490.0,0.00019178,2]
[366915361,1750569050101,-1956.05,0.00019178,2]
[366915362,1750569050111,-9572.71,0.00019178,2]
[366915363,1750569050120,-490.0,0.00019178,2]
[366915364,1750569050130,-490.0,0.00019178,2]
[366915365,1750569050140,-1350.33,0.00019178,2]
[366915366,1750569050150,-642.06,0.00019178,2]
[366915367,1750569050160,-2585.11,0.00019178,2]
[366915368,1750569050170,-2065.84,0.00019178,2]
[366915369,1750569050180,-2012.51,0.00019178,2]
[366915370,1750569050190,-2111.26,0.00019178,2]
[366915371,1750569050199,-490.0,0.00019178,2]
[366915372,1750569050209,-1038.24,0.00019178,2]
[366915373,1750569050220,-490.0,0.00019178,2]
[366915374,1750569050230,-490.0,0.00019178,2]
[366915375,1750569050239,-2106.78,0.00019178,2]
[366915376,1750569050254,-1032.1,0.00019178,2]
[366915377,1750569050264,-502.269256,0.00019178,2]
[366915378,1750569050274,-490.0,0.00019178,2]
[366915379,1750569050283,-693.0,0.00019178,2]
[366915380,1750569050293,-490.0,0.00019178,2]
[366915381,1750569050303,-490.0,0.00019178,2]
[366915382,1750569050312,-490.0,0.00019178,2]
[366915383,1750569050323,-2502.38,0.00019178,2]
[366915384,1750569050333,-2071.6,0.00019178,2]
[366915385,1750569050343,-490.0,0.00019178,2]
[366915386,1750569050354,-2499.36,0.00019178,2]
[366915387,1750569050364,-341.19986483,0.00019178,2]
[366915388,1750569050374,-490.0,0.00019178,2]
[366915389,1750569050384,-490.0,0.00019178,2]
[366915390,1750569050395,-1474.86,0.00019178,2]
[366915391,1750569050405,-490.0,0.00019178,2]
[366915392,1750569050415,-2012.97,0.00019178,2]
[366915393,1750569050425,-490.0,0.00019178,2]
[366915394,1750569050436,-490.0,0.00019178,2]
[366915395,1750569050446,-1107.87,0.00019178,2]
[366915396,1750569050456,-490.0,0.00019178,2]
[366915397,1750569050466,-490.0,0.00019178,2]
[366915398,1750569050478,-2814.46,0.00019178,2]
[366915399,1750569050488,-976.14,0.00019178,2]
[366915400,1750569050499,-490.0,0.00019178,2]
[366915401,1750569050510,-490.0,0.00019178,2]
[366915402,1750569050523,-490.0,0.00019178,2]
[366915403,1750569050534,-1338.57,0.00019178,2]
[366915404,1750569050543,-490.0,0.00019178,2]
[366915405,1750569050554,-2958.29,0.00019178,2]
[366915406,1750569050564,-36163.59,0.00019178,2]
[366915407,1750569050575,-490.0,0.00019178,2]
[366915408,1750569050585,-1535.8,0.00019178,2]
[366915409,1750569050595,-839.56,0.00019178,2]
[366915410,1750569050606,-490.0,0.00019178,2]
[366915411,1750569050615,-490.0,0.00019178,2]
[366915412,1750569050627,-8848.59,0.00019178,2]
[366915413,1750569050638,-490.0,0.00019178,2]
[366915414,1750569050648,-500.0,0.00019178,2]
[366915415,1750569050658,-490.0,0.00019178,2]
[366915416,1750569050668,-490.0,0.00019178,2]
[366915417,1750569050678,-5640.89,0.00019178,2]
[366915418,1750569050687,-490.0,0.00019178,2]
[366915419,1750569050697,-2309.77,0.00019178,2]
[366915420,1750569050706,-6430.01,0.00019178,2]
[366915421,1750569050717,-846.6,0.00019178,2]
[366915422,1750569050727,-1297.46,0.00019178,2]
[366915423,1750569050736,-2892.96,0.00019178,2]
[366915424,1750569050746,-536.35,0.00019178,2]
[366915425,1750569050756,-2500.16,0.00019178,2]
[366915426,1750569050766,-490.0,0.00019178,2]
[366915427,1750569050787,-490.0,0.00019178,2]
[366915428,1750569050798,-490.0,0.00019178,2]
[366915429,1750569050808,-1057.53,0.00019178,2]
[366915430,1750569050818,-490.0,0.00019178,2]
[366915431,1750569050828,-490.0,0.00019178,2]
[366915432,1750569050838,-1190.99,0.00019178,2]
[366915433,1750569050848,-2064.3,0.00019178,2]
[366915434,1750569050858,-8043.53,0.00019178,2]
[366915435,1750569050868,-4194.57,0.00019178,2]
[366915436,1750569050878,-490.0,0.00019178,2]
[366915437,1750569050889,-19602.52,0.00019178,2]
[366915438,1750569050900,-2808.34,0.00019178,2]
[366915439,1750569050910,-490.0,0.00019178,2]
[366915440,1750569050920,-13154.48,0.00019178,2]
[366915441,1750569050931,-490.0,0.00019178,2]
[366915442,1750569050941,-23451.66,0.00019178,2]
[366915443,1750569050951,-490.0,0.00019178,2]
[366915444,1750569050960,-490.0,0.00019178,2]
[366915445,1750569050975,-1864.02,0.00019178,2]
[366915446,1750569050985,-490.0,0.00019178,2]
[366915447,1750569050995,-490.0,0.00019178,2]
[366915448,1750569051005,-329.53026136,0.00019178,2]
[366915449,1750569051015,-490.0,0.00019178,2]
[366915450,1750569051025,-862.43,0.00019178,2]
[366915451,1750569051035,-4204.66,0.00019178,2]
[366915452,1750569051046,-3967.24,0.00019178,2]
[366915453,1750569051056,-1130.93,0.00019178,2]
[366915454,1750569051066,-638.54,0.00019178,2]
[366915455,1750569051076,-3118.94,0.00019178,2]
[366915456,1750569051086,-490.0,0.00019178,2]
[366915457,1750569051096,-1392.01,0.00019178,2]
[366915458,1750569051106,-906.73,0.00019178,2]
[366915459,1750569051116,-739.72,0.00019178,2]
[366915460,1750569051126,-490.0,0.00019178,2]
[366915461,1750569051137,-490.0,0.00019178,2]
[366915462,1750569051148,-4599.43,0.00019178,2]
[366915463,1750569051157,-5904.0,0.00019178,2]
[366915464,1750569051167,-490.0,0.00019178,2]
[366915465,1750569051177,-490.0,0.00019178,2]
[366915466,1750569051188,-397.70500889,0.00019178,2]
[366915467,1750569051198,-681.53,0.00019178,2]
[366915468,1750569051208,-2806.83,0.00019178,2]
[366915469,1750569051218,-490.0,0.00019178,2]
[366915470,1750569051228,-712.76,0.00019178,2]
[366915471,1750569051237,-1260.89,0.00019178,2]
[366915472,1750569051247,-1163.98,0.00019178,2]
[366915473,1750569051257,-490.0,0.00019178,2]
[366915474,1750569051267,-455.64032913,0.00019178,2]
[366915475,1750569051277,-1471.39,0.00019178,2]
[366915476,1750569051286,-490.0,0.00019178,2]
[366915477,1750569051296,-3168.41,0.00019178,2]
[366915478,1750569051305,-490.0,0.00019178,2]
[366915479,1750569051315,-490.0,0.00019178,2]
[366915480,1750569051326,-4780.11,0.00019178,2]
[366915481,1750569051337,-2611.25,0.00019178,2]
[366915482,1750569051347,-490.0,0.00019178,2]
[366915483,1750569051357,-490.0,0.00019178,2]
[366915484,1750569051367,-836.71,0.00019178,2]
[366915485,1750569051377,-490.0,0.00019178,2]
[366915486,1750569051387,-490.0,0.00019178,2]
[366915487,1750569051399,-490.0,0.00019178,2]
[366915488,1750569051409,-8272.4,0.00019178,2]
[366915489,1750569051422,-807.38,0.00019178,2]
[366915490,1750569051433,-490.0,0.00019178,2]
[366915491,1750569051447,-8200.33,0.00019178,2]
[366915492,1750569051457,-2234.32,0.00019178,2]
[366915493,1750569051468,-490.0,0.00019178,2]
[366915494,1750569051478,-490.0,0.00019178,2]
[366915495,1750569051491,-490.0,0.00019178,2]
[366915496,1750569051501,-1871.57,0.00019178,2]
[366915497,1750569051511,-490.0,0.00019178,2]
[366915498,1750569051523,-2624.73,0.00019178,2]
[366915499,1750569051534,-3082.34,0.00019178,2]
[366915500,1750569051544,-490.0,0.00019178,2]
[366915501,1750569051554,-1849.07,0.00019178,2]
[366915502,1750569051564,-502.8,0.00019178,2]
[366915503,1750569051574,-490.0,0.00019178,2]
[366915504,1750569051584,-490.0,0.00019178,2]
[366915505,1750569051594,-7816.83,0.00019178,2]
[366915506,1750569051604,-912.75,0.00019178,2]
[366915507,1750569051614,-490.0,0.00019178,2]
[366915508,1750569051624,-490.0,0.00019178,2]
[366915509,1750569051634,-532.46229094,0.00019178,2]
[366915510,1750569051645,-1048.72,0.00019178,2]
[366915511,1750569051655,-1609.75,0.00019178,2]
[366915512,1750569051665,-490.0,0.00019178,2]
[366915513,1750569051676,-837.83,0.00019178,2]
[366915514,1750569051686,-490.0,0.00019178,2]
[366915515,1750569051696,-5322.15,0.00019178,2]
[366915516,1750569051711,-490.0,0.00019178,2]
[366915517,1750569051721,-498.87205405,0.00019178,2]
[366915518,1750569051731,-2638.36,0.00019178,2]
[366915519,1750569051742,-4140.7,0.00019178,2]
[366915520,1750569051752,-5908.67,0.00019178,2]
[366915521,1750569051762,-1880.96,0.00019178,2]
[366915522,1750569051772,-490.0,0.00019178,2]
[366915523,1750569051783,-593.25,0.00019178,2]
[366915524,1750569051792,-490.0,0.00019178,2]
[366915525,1750569051801,-490.0,0.00019178,2]
[366915526,1750569051812,-1131.28,0.00019178,2]
[366915527,1750569051822,-897.71,0.00019178,2]
[366915528,1750569051832,-490.0,0.00019178,2]
[366915529,1750569051842,-490.0,0.00019178,2]
[366915530,1750569051853,-1503.63,0.00019178,2]
[366915531,1750569051863,-770.4,0.00019178,2]
[366915532,1750569051873,-490.0,0.00019178,2]
[366915533,1750569051883,-3811.81,0.00019178,2]
[366915534,1750569051893,-3148.5,0.00019178,2]
[366915535,1750569051903,-1874.56,0.00019178,2]
[366915536,1750569051913,-490.0,0.00019178,2]
[366915537,1750569051923,-490.0,0.00019178,2]
[366915538,1750569051933,-3617.34,0.00019178,2]
[366915539,1750569051943,-500.0,0.00019178,2]
[366915540,1750569051953,-460.200579,0.00019178,2]
[366915541,1750569051963,-11481.76,0.00019178,2]
[366915542,1750569051974,-500.0,0.00019178,2]
[366915543,1750569051984,-500.0,0.00019178,2]
[366915544,1750569051994,-500.0,0.00019178,2]
[366915545,1750569052004,-500.0,0.00019178,2]
[366915546,1750569052014,-500.0,0.00019178,2]
[366915547,1750569052024,-500.0,0.00019178,2]
[366915548,1750569052034,-490.0,0.00019178,2]
[366915549,1750569052044,-929.65,0.00019178,2]
[366915550,1750569052054,-490.0,0.00019178,2]
[366915551,1750569052064,-11942.31,0.00019178,2]
[366915552,1750569052073,-490.0,0.00019178,2]
[366915553,1750569052083,-490.0,0.00019178,2]
[366915554,1750569052094,-193.17235938,0.00019178,2]
[366915555,1750569052104,-688.1,0.00019178,2]
[366915556,1750569052114,-490.0,0.00019178,2]
[366915557,1750569052124,-3400.54,0.00019178,2]
[366915558,1750569052135,-490.0,0.00019178,2]
[366915559,1750569052146,-490.0,0.00019178,2]
[366915560,1750569052155,-750.96,0.00019178,2]
[366915561,1750569052166,-490.0,0.00019178,2]
[366915562,1750569052176,-762.07,0.00019178,2]
[366915563,1750569052186,-490.0,0.00019178,2]
[366915564,1750569052196,-490.0,0.00019178,2]
[366915565,1750569052206,-151.0,0.00019178,2]
[366915566,1750569052216,-1298.66,0.00019178,2]
[366915567,1750569052225,-2720.17,0.00019178,2]
[366915568,1750569052235,-490.0,0.00019178,2]
[366915569,1750569052245,-421.56490223,0.00019178,2]
[366915570,1750569052255,-4737.48,0.00019178,2]
[366915571,1750569052264,-490.0,0.00019178,2]
[366915572,1750569052274,-19021.19,0.00019178,2]
[366915573,1750569052284,-490.0,0.00019178,2]
[366915574,1750569052294,-2907.39,0.00019178,2]
[366915575,1750569052304,-590.6,0.00019178,2]
[366915576,1750569052314,-661.92,0.00019178,2]
[366915577,1750569052323,-4074.42,0.00019178,2]
[366915578,1750569052334,-490.0,0.00019178,2]
[366915579,1750569052343,-1558.64,0.00019178,2]
[366915580,1750569052354,-490.0,0.00019178,2]
[366915581,1750569052363,-7664.23,0.00019178,2]
[366915582,1750569052373,-490.0,0.00019178,2]
[366915583,1750569052383,-2071.82,0.00019178,2]
[366915584,1750569052394,-490.0,0.00019178,2]
[366915585,1750569052406,-2370.29,0.00019178,2]
[366915586,1750569052416,-490.0,0.00019178,2]
[366915587,1750569052425,-490.0,0.00019178,2]
[366915588,1750569052437,-1523.83,0.00019178,2]
[366915589,1750569052448,-490.0,0.00019178,2]
[366915590,1750569052458,-490.0,0.00019178,2]
[366915591,1750569052468,-759.11,0.00019178,2]
[366915592,1750569052479,-490.0,0.00019178,2]
[366915593,1750569052489,-970.49,0.00019178,2]
[366915594,1750569052499,-490.0,0.00019178,2]
[366915595,1750569052508,-1928.99,0.00019178,2]
[366915596,1750569052519,-490.0,0.00019178,2]
[366915597,1750569052529,-490.0,0.00019178,2]
[366915598,1750569052539,-1644.32,0.00019178,2]
[366915599,1750569052550,-2310.41,0.00019178,2]
[366915600,1750569052560,-4511.9,0.00019178,2]
[366915601,1750569052570,-490.0,0.00019178,2]
[366915602,1750569052580,-490.0,0.00019178,2]
[366915603,1750569052590,-151.0,0.00019178,2]
[366915604,1750569052600,-490.0,0.00019178,2]
[366915605,1750569052610,-1480.63,0.00019178,2]
[366915606,1750569052619,-823.93,0.00019178,2]
[366915607,1750569052629,-1416.13,0.00019178,2]
[366915608,1750569052639,-490.0,0.00019178,2]
[366915609,1750569052650,-886.61,0.00019178,2]
[366915610,1750569052660,-2431.39,0.00019178,2]
[366915611,1750569052669,-490.0,0.00019178,2]
[366915612,1750569052679,-490.0,0.00019178,2]
[366915613,1750569052688,-17099.71,0.00019178,2]
[366915614,1750569052698,-2432.01,0.00019178,2]
[366915615,1750569052708,-2884.89,0.00019178,2]
[366915616,1750569052718,-616.89,0.00019178,2]
[366915617,1750569052728,-696.77,0.00019178,2]
[366915618,1750569052738,-490.0,0.00019178,2]
[366915619,1750569052747,-490.0,0.00019178,2]
[366915620,1750569052757,-5748.15,0.00019178,2]
[366915621,1750569052766,-490.0,0.00019178,2]
[366915622,1750569052776,-500.0,0.00019178,2]
[366915623,1750569052788,-500.0,0.00019178,2]
[366915624,1750569052798,-490.0,0.00019178,2]
[366915625,1750569052808,-500.0,0.00019178,2]
[366915626,1750569052819,-500.0,0.00019178,2]
[366915627,1750569052830,-490.0,0.00019178,2]
[366915628,1750569052842,-500.0,0.00019178,2]
[366915629,1750569052852,-1875.58,0.00019178,2]
[366915630,1750569052863,-500.0,0.00019178,2]
[366915631,1750569052874,-490.0,0.00019178,2]
[366915632,1750569052885,-490.0,0.00019178,2]
[366915633,1750569052896,-1754.14,0.00019178,2]
[366915634,1750569052907,-490.0,0.00019178,2]
[366915635,1750569052918,-490.0,0.00019178,2]
[366915636,1750569052928,-11996.91,0.00019178,2]
[366915637,1750569052939,-490.0,0.00019178,2]
[366915638,1750569052950,-1473.55,0.00019178,2]
[366915639,1750569052961,-9606.61,0.00019178,2]
[366915640,1750569052971,-697.77,0.00019178,2]
[366915641,1750569052982,-490.0,0.00019178,2]
[366915642,1750569052993,-490.0,0.00019178,2]
[366915643,1750569053003,-490.0,0.00019178,2]
[366915644,1750569053014,-157.22631297,0.00019178,2]
[366915645,1750569053025,-490.0,0.00019178,2]
[366915646,1750569053036,-490.0,0.00019178,2]
[366915647,1750569053047,-1536.51,0.00019178,2]
[366915648,1750569053058,-4286.41,0.00019178,2]
[366915649,1750569053069,-1766.07,0.00019178,2]
[366915650,1750569053079,-490.0,0.00019178,2]
[366915651,1750569053090,-490.0,0.00019178,2]
[366915652,1750569053101,-2760.29,0.00019178,2]
[366915653,1750569053112,-4103.56,0.00019178,2]
[366915654,1750569053123,-1804.45,0.00019178,2]
[366915655,1750569053133,-490.0,0.00019178,2]
[366915656,1750569053144,-540.76,0.00019178,2]
[366915657,1750569053154,-353.82035193,0.00019178,2]
[366915658,1750569053164,-3524.76,0.00019178,2]
[366915659,1750569053175,-500.0,0.00019178,2]
[366915660,1750569053186,-3281.73,0.00019178,2]
[366915661,1750569053196,-500.0,0.00019178,2]
[366915662,1750569053207,-894.65,0.00019178,2]
[366915663,1750569053218,-500.0,0.00019178,2]
[366915664,1750569053230,-500.0,0.00019178,2]
[366915665,1750569053240,-670.25,0.00019178,2]
[366915666,1750569053252,-490.0,0.00019178,2]
[366915667,1750569053264,-500.0,0.00019178,2]
[366915668,1750569053275,-871.3,0.00019178,2]
[366915669,1750569053285,-4407.74,0.00019178,2]
[366915670,1750569053296,-490.0,0.00019178,2]
[366915671,1750569053306,-1487.25,0.00019178,2]
[366915672,1750569053317,-490.0,0.00019178,2]
[366915673,1750569053328,-2649.91,0.00019178,2]
[366915674,1750569053339,-4805.66,0.00019178,2]
[366915675,1750569053350,-1085.53,0.00019178,2]
[366915676,1750569053361,-1085.53,0.00019178,2]
[366915677,1750569053371,-1085.53,0.00019178,2]
[366915678,1750569053382,-2540.81,0.00019178,2]
[366915679,1750569053393,-1085.53,0.00019178,2]
[366915680,1750569053403,-1085.53,0.00019178,2]
[366915681,1750569053414,-1085.53,0.00019178,2]
[366915682,1750569053424,-1085.53,0.00019178,2]
[366915683,1750569053435,-490.0,0.00019178,2]
[366915684,1750569053448,-490.0,0.00019178,2]
[366915685,1750569053459,-2893.71,0.00019178,2]
[366915686,1750569053470,-490.0,0.00019178,2]
[366915687,1750569053482,-490.0,0.00019178,2]
[366915688,1750569053494,-151.0,0.00019178,2]
[366915689,1750569053504,-490.0,0.00019178,2]
[366915690,1750569053515,-490.0,0.00019178,2]
[366915691,1750569053527,-1135.92,0.00019178,2]
[366915692,1750569053538,-2069.32,0.00019178,2]
[366915693,1750569053549,-490.0,0.00019178,2]
[366915694,1750569053560,-492.59539473,0.00019178,2]
[366915695,1750569053570,-2167.2,0.00019178,2]
[366915696,1750569053581,-921.57,0.00019178,2]
[366915697,1750569053592,-1653.66,0.00019178,2]
[366915698,1750569053602,-3691.1,0.00019178,2]
[366915699,1750569053614,-3871.11,0.00019178,2]
[366915700,1750569053624,-151.0,0.00019178,2]
[366915701,1750569053635,-490.0,0.00019178,2]
[366915702,1750569053646,-151.0,0.00019178,2]
[366915703,1750569053657,-490.0,0.00019178,2]
[366915704,1750569053667,-490.0,0.00019178,2]
[366915705,1750569053679,-490.0,0.00019178,2]
[366915706,1750569053690,-490.0,0.00019178,2]
[366915707,1750569053700,-358.24713622,0.00019178,2]
[366915708,1750569053711,-490.0,0.00019178,2]
[366915709,1750569053722,-2964.89,0.00019178,2]
[366915710,1750569053732,-151.0,0.00019178,2]
[366915711,1750569053744,-1023.38,0.00019178,2]
[366915712,1750569053755,-2464.04,0.00019178,2]
[366915713,1750569053766,-2745.54,0.00019178,2]
[366915714,1750569053777,-490.0,0.00019178,2]
[366915715,1750569053787,-780.61,0.00019178,2]
[366915716,1750569053798,-478.41587293,0.00019178,2]
[366915717,1750569053809,-904.97,0.00019178,2]
[366915718,1750569053819,-678.14,0.00019178,2]
[366915719,1750569053830,-490.0,0.00019178,2]
[366915720,1750569053840,-7872.95,0.00019178,2]
[366915721,1750569053851,-1716.44,0.00019178,2]
[366915722,1750569053861,-490.0,0.00019178,2]
[366915723,1750569053871,-491.40251416,0.00019178,2]
[366915724,1750569053882,-490.0,0.00019178,2]
[366915725,1750569053892,-490.0,0.00019178,2]
[366915726,1750569053903,-5325.59,0.00019178,2]
[366915727,1750569053913,-589.1,0.00019178,2]
[366915728,1750569053923,-490.0,0.00019178,2]
[366915729,1750569053934,-490.0,0.00019178,2]
[366915730,1750569053944,-490.0,0.00019178,2]
[366915731,1750569053955,-490.0,0.00019178,2]
[366915732,1750569053966,-2155.93,0.00019178,2]
[366915733,1750569053976,-490.0,0.00019178,2]
[366915734,1750569053987,-2364.95,0.00019178,2]
[366915735,1750569053999,-4786.94,0.00019178,2]
[366915736,1750569054010,-428.246421,0.00019178,2]
[366915737,1750569054021,-490.0,0.00019178,2]
[366915738,1750569054032,-25323.5,0.00019178,2]
[366915739,1750569054043,-490.0,0.00019178,2]
[366915740,1750569054054,-16972.73,0.00019178,2]
[366915741,1750569054065,-953.56,0.00019178,2]
[366915742,1750569054076,-151.0,0.00019178,2]
[366915743,1750569054087,-4599.26,0.00019178,2]
[366915744,1750569054097,-151.0,0.00019178,2]
[366915745,1750569054108,-4703.92,0.00019178,2]
[366915746,1750569054118,-1466.17,0.00019178,2]
[366915747,1750569054129,-490.0,0.00019178,2]
[366915748,1750569054139,-490.0,0.00019178,2]
[366915749,1750569054151,-490.0,0.00019178,2]
[366915750,1750569054161,-490.0,0.00019178,2]
[366915751,1750569054172,-625.18,0.00019178,2]
[366915752,1750569054183,-1124.46,0.00019178,2]
[366915753,1750569054193,-1354.5,0.00019178,2]
[366915754,1750569054204,-1668.45,0.00019178,2]
[366915755,1750569054214,-492.91433233,0.00019178,2]
[366915756,1750569054224,-151.0,0.00019178,2]
[366915757,1750569054235,-490.0,0.00019178,2]
[366915758,1750569054244,-520.25,0.00019178,2]
[366915759,1750569054255,-5353.3,0.00019178,2]
[366915760,1750569054266,-490.0,0.00019178,2]
[366915761,1750569054275,-490.0,0.00019178,2]
[366915762,1750569054286,-490.0,0.00019178,2]
[366915763,1750569054295,-490.0,0.00019178,2]
[366915764,1750569054305,-468.55194253,0.00019178,2]
[366915765,1750569054316,-6191.61,0.00019178,2]
[366915766,1750569054326,-1410.74,0.00019178,2]
[366915767,1750569054337,-490.0,0.00019178,2]
[366915768,1750569054347,-490.0,0.00019178,2]
[366915769,1750569054357,-500.0,0.00019178,2]
[366915770,1750569054368,-602.03,0.00019178,2]
[366915771,1750569054378,-3239.23,0.00019178,2]
[366915772,1750569054388,-500.0,0.00019178,2]
[366915773,1750569054399,-500.0,0.00019178,2]
[366915774,1750569054410,-500.0,0.00019178,2]
[366915775,1750569054420,-500.0,0.00019178,2]
[366915776,1750569054432,-490.0,0.00019178,2]
[366915777,1750569054445,-490.0,0.00019178,2]
[366915778,1750569054455,-490.0,0.00019178,2]
[366915779,1750569054466,-781.14,0.00019178,2]
[366915780,1750569054477,-2891.05,0.00019178,2]
[366915781,1750569054487,-490.0,0.00019178,2]
[366915782,1750569054497,-500.0,0.00019178,2]
[366915783,1750569054509,-490.0,0.00019178,2]
[366915784,1750569054521,-8657.6,0.00019178,2]
[366915785,1750569054532,-490.0,0.00019178,2]
[366915786,1750569054542,-490.0,0.00019178,2]
[366915787,1750569054553,-500.0,0.00019178,2]
[366915788,1750569054565,-490.0,0.00019178,2]
[366915789,1750569054575,-10674.9,0.00019178,2]
[366915790,1750569054586,-490.0,0.00019178,2]
[366915791,1750569054599,-490.0,0.00019178,2]
[366915792,1750569054610,-198.89188358,0.00019178,2]
[366915793,1750569054621,-490.0,0.00019178,2]
[366915794,1750569054632,-202.757602,0.00019178,2]
[366915795,1750569054644,-500.0,0.00019178,2]
[366915796,1750569054655,-1583.94,0.00019178,2]
[366915797,1750569054667,-490.0,0.00019178,2]
[366915798,1750569054679,-5041.54,0.00019178,2]
[366915799,1750569054690,-500.0,0.00019178,2]
[366915800,1750569054700,-490.0,0.00019178,2]
[366915801,1750569054710,-3402.67,0.00019178,2]
[366915802,1750569054721,-490.0,0.00019178,2]
[366915803,1750569054731,-157.32777255,0.00019178,2]
[366915804,1750569054743,-490.0,0.00019178,2]
[366915805,1750569054754,-1225.18,0.00019178,2]
[366915806,1750569054766,-2104.19,0.00019178,2]
[366915807,1750569054777,-500.0,0.00019178,2]
[366915808,1750569054787,-2092.65,0.00019178,2]
[366915809,1750569054797,-490.0,0.00019178,2]
[366915810,1750569054809,-4682.57,0.00019178,2]
[366915811,1750569054819,-150.0,0.00019178,2]
[366915812,1750569054829,-490.0,0.00019178,2]
[366915813,1750569054840,-1953.88,0.00019178,2]
[366915814,1750569054850,-1431.98,0.00019178,2]
[366915815,1750569054860,-490.0,0.00019178,2]
[366915816,1750569054870,-152.729053,0.00019178,2]
[366915817,1750569054879,-500.0,0.00019178,2]
[366915818,1750569054887,-3251.3,0.00019178,2]
[366915819,1750569054898,-490.0,0.00019178,2]
[366915820,1750569054905,-490.0,0.00019178,2]
[366915821,1750569054914,-490.0,0.00019178,2]
[366915822,1750569054921,-490.0,0.00019178,2]
[366915823,1750569054928,-150.0,0.00019178,2]
[366915824,1750569054936,-490.0,0.00019178,2]
[366915825,1750569054944,-150.0,0.00019178,2]
[366915826,1750569054951,-490.0,0.00019178,2]
[366915827,1750569054959,-150.08653627,0.00019178,2]
[366915828,1750569054969,-1690.52,0.00019178,2]
[366915829,1750569054979,-576.46,0.00019178,2]
[366915830,1750569054989,-899.32,0.00019178,2]
[366915831,1750569055000,-490.0,0.00019178,2]
[366915832,1750569055011,-150.0,0.00019178,2]